fUST/lending_fUST_20240613
["ID","MTS","AMOUNT","RATE_DAILY","PERIOD"]
[329307757,1718231445928,-546.08,0.00016986,2]
[329307758,1718231445940,-500.0,0.00016986,2]
[329307759,1718231445952,-500.0,0.00016986,2]
[329307760,1718231445963,-500.0,0.00016986,2]
[329307761,1718231445974,-686.84,0.00016986,2]
[329307762,1718231445984,-500.0,0.00016986,2]
[329307763,1718231445994,-500.0,0.00016986,2]
[329307764,1718231446010,-500.0,0.00016986,2]
[329307765,1718231446025,-500.0,0.00016986,2]
[329307766,1718231446036,-500.0,0.00016986,2]
[329307767,1718231446046,-500.0,0.00016986,2]
[329307768,1718231446056,-500.0,0.00016986,2]
[329307769,1718231446067,-500.0,0.00016986,2]
[329307770,1718231446077,-500.0,0.00016986,2]
[329307771,1718231446088,-500.0,0.00016986,2]
[329307772,1718231446099,-239.80654856,0.00016986,2]
[329307773,1718231446110,-500.0,0.00016986,2]
[329307774,1718231446121,-500.0,0.00016986,2]
[329307775,1718231446132,-580.84,0.00016986,2]
[329307776,1718231446142,-500.0,0.00016986,2]
[329307777,1718231446153,-500.0,0.00016986,2]
[329307778,1718231446165,-500.0,0.00016986,2]
[329307779,1718231446175,-500.0,0.00016986,2]
[329307780,1718231446186,-1068.1,0.00016986,2]
[329307781,1718231446196,-500.0,0.00016986,2]
[329307782,1718231446206,-2243.44,0.00016986,2]
[329307783,1718231446216,-500.0,0.00016986,2]
[329307784,1718231446226,-500.0,0.00016986,2]
[329307785,1718231446236,-583.47,0.00016986,2]
[329307786,1718231446246,-2149.57,0.00016986,2]
[329307787,1718231446256,-5944.33,0.00016986,2]
[329307788,1718231446266,-2446.69,0.00016986,2]
[329307789,1718231446276,-500.0,0.00016986,2]
[329307790,1718231446287,-500.0,0.00016986,2]
[329307791,1718231446297,-500.0,0.00016986,2]
[329307792,1718231446308,-500.0,0.00016986,2]
[329307793,1718231446318,-500.0,0.00016986,2]
[329307794,1718231446328,-500.0,0.00016986,2]
[329307795,1718231446338,-1423.83,0.00016986,2]
[329307796,1718231446348,-500.0,0.00016986,2]
[329307797,1718231446359,-507.69,0.00016986,2]
[329307798,1718231446370,-1634.47,0.00016986,2]
[329307799,1718231446382,-604.9,0.00016986,2]
[329307800,1718231446392,-500.0,0.00016986,2]
[329307801,1718231446403,-695.57,0.00016986,2]
[329307802,1718231446413,-500.0,0.00016986,2]
[329307803,1718231446424,-589.08,0.00016986,2]
[329307804,1718231446434,-500.0,0.00016986,2]
[329307805,1718231446444,-3009.04,0.00016986,2]
[329307806,1718231446454,-500.0,0.00016986,2]
[329307807,1718231446465,-701.4,0.00016986,2]
[329307808,1718231446475,-551.64,0.00016986,2]
[329307809,1718231446486,-773.38,0.00016986,2]
[329307810,1718231446497,-271.84423605,0.00016986,2]
[329307811,1718231446509,-500.0,0.00016986,2]
[329307812,1718231446519,-500.0,0.00016986,2]
[329307813,1718231446530,-500.0,0.00016986,2]
[329307814,1718231446540,-1043.65,0.00016986,2]
[329307815,1718231446551,-509.69,0.00016986,2]
[329307816,1718231446565,-500.0,0.00016986,2]
[329307818,1718231446576,-500.0,0.00016986,2]
[329307821,1718231446589,-573.86,0.00016986,2]
[329307823,1718231446603,-500.0,0.00016986,2]
[329307825,1718231446613,-779.1,0.00016986,2]
[329307827,1718231446624,-500.0,0.00016986,2]
[329307829,1718231446635,-203.08,0.00016986,2]
[329307831,1718231446646,-615.93,0.00016986,2]
[329307832,1718231446657,-500.0,0.00016986,2]
[329307833,1718231446669,-500.0,0.00016986,2]
[329307834,1718231446678,-500.0,0.00016986,2]
[329307835,1718231446688,-500.0,0.00016986,2]
[329307836,1718231446698,-500.0,0.00016986,2]
[329307837,1718231446708,-681.72,0.00016986,2]
[329307838,1718231446718,-500.0,0.00017046,2]
[329307839,1718231446729,-500.0,0.00017259,2]
[329307840,1718231446739,-500.0,0.0001726,2]
[329307841,1718231446750,-500.0,0.0001726,2]
[329307842,1718231446761,-450.24372524,0.0001726,2]
[329307843,1718231446772,-500.0,0.0001726,2]
[329307844,1718231446782,-500.0,0.0001726,2]
[329307846,1718231446793,-276.76,0.0001726,2]
[329307849,1718231446807,-500.0,0.0001726,2]
[329307852,1718231446818,-500.0,0.0001726,2]
[329307854,1718231446829,-500.0,0.0001726,2]
[329307856,1718231446840,-500.0,0.0001726,2]
[329307858,1718231446851,-420.18544994,0.0001726,2]
[329307860,1718231446861,-500.0,0.0001726,2]
[329307862,1718231446871,-500.0,0.0001726,2]
[329307864,1718231446882,-500.0,0.0001726,2]
[329307866,1718231446893,-500.0,0.0001726,2]
[329307868,1718231446924,-546.08,0.0001726,2]
[329307870,1718231446935,-500.0,0.0001726,2]
[329307872,1718231446947,-500.0,0.0001726,2]
[329307874,1718231446958,-500.0,0.0001726,2]
[329307876,1718231446968,-686.84,0.0001726,2]
[329307877,1718231446979,-500.0,0.0001726,2]
[329307878,1718231446989,-500.0,0.0001726,2]
[329307879,1718231446999,-500.0,0.0001726,2]
[329307880,1718231447010,-500.0,0.0001726,2]
[329307881,1718231447022,-500.0,0.0001726,2]
[329307882,1718231447033,-580.84,0.0001726,2]
[329307883,1718231447044,-500.0,0.0001726,2]
[329307884,1718231447054,-500.0,0.0001726,2]
[329307885,1718231447066,-500.0,0.0001726,2]
[329307886,1718231447075,-1068.1,0.0001726,2]
[329307887,1718231447086,-500.0,0.0001726,2]
[329307888,1718231447097,-2243.44,0.0001726,2]
[329307889,1718231447108,-500.0,0.0001726,2]
[329307890,1718231447118,-500.0,0.0001726,2]
[329307891,1718231447128,-583.47,0.0001726,2]
[329307892,1718231447139,-2149.57,0.0001726,2]
[329307893,1718231447149,-5944.33,0.0001726,2]
[329307894,1718231447159,-2446.69,0.0001726,2]
[329307895,1718231447169,-500.0,0.0001726,2]
[329307896,1718231447179,-500.0,0.0001726,2]
[329307897,1718231447189,-1423.83,0.0001726,2]
[329307898,1718231447200,-507.69,0.0001726,2]
[329307899,1718231447213,-1634.47,0.0001726,2]
[329307900,1718231447224,-604.9,0.0001726,2]
[329307909,1718231447344,-424.56489109,0.0001726,2]
[329307910,1718231447355,-695.57,0.0001726,2]
[329307912,1718231447365,-309.92,0.0001726,2]
[329307914,1718231447376,-589.08,0.0001726,2]
[329307916,1718231447391,-3009.04,0.0001726,2]
[329307917,1718231447400,-500.0,0.0001726,2]
[329307918,1718231447413,-701.4,0.0001726,2]
[329307919,1718231447423,-551.64,0.0001726,2]
[329307920,1718231447434,-773.38,0.0001726,2]
[329307921,1718231447444,-500.0,0.0001726,2]
[329307922,1718231447454,-500.0,0.0001726,2]
[329307923,1718231447466,-1043.65,0.0001726,2]
[329307924,1718231447477,-509.69,0.0001726,2]
[329307925,1718231447487,-500.0,0.0001726,2]
[329307926,1718231447499,-500.0,0.0001726,2]
[329307927,1718231447509,-573.86,0.0001726,2]
[329307928,1718231447519,-500.0,0.0001726,2]
[329307929,1718231447528,-779.1,0.0001726,2]
[329307930,1718231447539,-500.0,0.0001726,2]
[329307931,1718231447551,-615.93,0.0001726,2]
[329307932,1718231447562,-500.0,0.0001726,2]
[329307933,1718231447573,-500.0,0.0001726,2]
[329307934,1718231447583,-500.0,0.0001726,2]
[329307935,1718231447594,-500.0,0.0001726,2]
[329307936,1718231447605,-203.93474426,0.0001726,2]
[329307937,1718231447615,-467.50618285,0.00017363,2]
[329307938,1718231447628,-500.0,0.00017533,2]
[329307939,1718231447639,-553.12,0.00017534,2]
[329307940,1718231447650,-500.0,0.00017534,2]
[329307941,1718231447662,-500.0,0.00017534,2]
[329307942,1718231447681,-528.94905643,0.00017534,2]
[329307943,1718231447691,-500.0,0.00017534,2]
[329307944,1718231447702,-500.0,0.00017534,2]
[329307945,1718231447719,-500.0,0.00017534,2]
[329307946,1718231447730,-500.0,0.00017534,2]
[329307947,1718231447742,-500.0,0.00017534,2]
[329307948,1718231447752,-500.0,0.00017534,2]
[329307949,1718231447763,-500.0,0.00017534,2]
[329307950,1718231447775,-500.0,0.00017534,2]
[329307951,1718231447785,-546.08,0.00017534,2]
[329307952,1718231447796,-500.0,0.00017534,2]
[329307953,1718231447806,-500.0,0.00017534,2]
[329307954,1718231447817,-686.84,0.00017534,2]
[329307955,1718231447829,-500.0,0.00017534,2]
[329307956,1718231447840,-580.84,0.00017534,2]
[329307957,1718231447851,-500.0,0.00017534,2]
[329307958,1718231447862,-500.0,0.00017534,2]
[329307959,1718231447876,-1068.1,0.00017534,2]
[329307960,1718231447887,-500.0,0.00017534,2]
[329307961,1718231447920,-2243.44,0.00017534,2]
[329307962,1718231447934,-500.0,0.00017534,2]
[329307963,1718231447946,-500.0,0.00017534,2]
[329307964,1718231447960,-583.47,0.00017534,2]
[329307965,1718231447974,-5944.33,0.00017534,2]
[329307966,1718231447988,-2149.57,0.00017534,2]
[329307967,1718231447998,-2446.69,0.00017534,2]
[329307968,1718231448010,-500.0,0.00017534,2]
[329307969,1718231448024,-500.0,0.00017534,2]
[329307970,1718231448037,-1423.83,0.00017534,2]
[329307971,1718231448049,-507.69,0.00017534,2]
[329307972,1718231448066,-1634.47,0.00017534,2]
[329307973,1718231448084,-604.9,0.00017534,2]
[329307975,1718231448097,-695.57,0.00017534,2]
[329307977,1718231448109,-589.08,0.00017534,2]
[329307979,1718231448120,-3009.04,0.00017534,2]
[329307981,1718231448138,-701.4,0.00017534,2]
[329307983,1718231448150,-551.64,0.00017534,2]
[329307985,1718231448160,-773.38,0.00017534,2]
[329307986,1718231448170,-500.0,0.00017534,2]
[329307987,1718231448181,-500.0,0.00017534,2]
[329307988,1718231448192,-1043.65,0.00017534,2]
[329307989,1718231448202,-509.69,0.00017534,2]
[329307990,1718231448213,-500.0,0.00017534,2]
[329307991,1718231448227,-500.0,0.00017534,2]
[329307992,1718231448237,-573.86,0.00017534,2]
[329307993,1718231448250,-500.0,0.00017534,2]
[329307994,1718231448259,-779.1,0.00017534,2]
[329307995,1718231448270,-500.0,0.00017534,2]
[329307996,1718231448279,-615.93,0.00017534,2]
[329307997,1718231448289,-500.0,0.00017534,2]
[329307998,1718231448300,-500.0,0.00017534,2]
[329307999,1718231448318,-558.44,0.00017534,2]
[329308000,1718231448328,-500.0,0.00017534,2]
[329308001,1718231448338,-595.2,0.00017807,2]
[329308002,1718231448349,-500.0,0.00017808,2]
[329308003,1718231448363,-500.0,0.00017808,2]
[329308004,1718231448374,-500.0,0.00017808,2]
[329308005,1718231448388,-500.0,0.00017808,2]
[329308006,1718231448399,-500.0,0.00017808,2]
[329308007,1718231448410,-500.0,0.00017808,2]
[329308008,1718231448421,-200.66772711,0.00017808,2]
[329308009,1718231448431,-500.0,0.00017808,2]
[329308010,1718231448445,-546.08,0.00017808,2]
[329308011,1718231448456,-500.0,0.00017808,2]
[329308012,1718231448471,-686.84,0.00017808,2]
[329308013,1718231448489,-580.84,0.00017808,2]
[329308014,1718231448501,-500.0,0.00017808,2]
[329308015,1718231448511,-500.0,0.00017808,2]
[329308016,1718231448534,-1068.1,0.00017808,2]
[329308018,1718231448545,-500.0,0.00017808,2]
[329308020,1718231448556,-2243.44,0.00017808,2]
[329308022,1718231448568,-500.0,0.00017808,2]
[329308024,1718231448578,-500.0,0.00017808,2]
[329308026,1718231448590,-583.47,0.00017808,2]
[329308028,1718231448600,-5944.33,0.00017808,2]
[329308030,1718231448610,-2149.57,0.00017808,2]
[329308031,1718231448620,-2446.69,0.00017808,2]
[329308032,1718231448630,-500.0,0.00017808,2]
[329308033,1718231448640,-500.0,0.00017808,2]
[329308034,1718231448652,-1423.83,0.00017808,2]
[329308035,1718231448664,-507.69,0.00017808,2]
[329308036,1718231448674,-1634.47,0.00017808,2]
[329308037,1718231448684,-604.9,0.00017808,2]
[329308038,1718231448695,-578.32684379,0.00017808,2]
[329308039,1718231448817,-117.24315621,0.00017808,2]
[329308040,1718231448827,-589.08,0.00017808,2]
[329308041,1718231448841,-742.79442083,0.00017808,2]
[329308042,1718231448868,-2266.24557917,0.00017808,2]
[329308043,1718231448879,-701.4,0.00017808,2]
[329308044,1718231448889,-551.64,0.00017808,2]
[329308045,1718231448914,-773.38,0.00017808,2]
[329308046,1718231448936,-500.0,0.00017808,2]
[329308047,1718231448964,-226.10422288,0.00017808,2]
[329308048,1718231448978,-273.89577712,0.00017808,2]
[329308049,1718231448990,-83.04301983,0.00017808,2]
[329308050,1718231449013,-960.60698017,0.00017808,2]
[329308051,1718231449027,-509.69,0.00017808,2]
[329308052,1718231449042,-177.83804546,0.00017808,2]
[329308053,1718231449076,-681.72,0.0001726,2]
[329308054,1718231449090,-322.16195454,0.00017808,2]
[329308055,1718231449104,-573.86,0.00017808,2]
[329308056,1718231449119,-382.99,0.00017808,2]
[329308057,1718231449134,-779.1,0.00017808,2]
[329308058,1718231449174,-615.93,0.00017808,2]
[329308059,1718231449189,-161.85456115,0.00017808,2]
[329308060,1718231449914,-913.65753931,0.00016338,2]
[329308061,1718231449926,-500.0,0.00016438,2]
[329308062,1718231449937,-500.0,0.00016438,2]
[329308063,1718231449950,-500.0,0.00016438,2]
[329308064,1718231449962,-500.0,0.00016438,2]
[329308065,1718231449973,-486.04911654,0.00016438,2]
[329308066,1718231449987,-13.95088346,0.00016438,2]
[329308067,1718231450000,-500.0,0.00016711,2]
[329308068,1718231450012,-315.3,0.00016711,2]
[329308069,1718231450024,-264.93725263,0.00016712,2]
[329308070,1718231450039,-235.06274737,0.00016712,2]
[329308071,1718231450056,-681.72,0.00017534,2]
[329308072,1718231450070,-338.14543885,0.00017808,2]
[329308073,1718231450082,-500.0,0.00017808,2]
[329308074,1718231450095,-611.1136572,0.00017808,2]
[329308075,1718231450107,-681.72,0.00017808,2]
[329308076,1718231450119,-1355.61945113,0.00018,2]
[329308077,1718231450131,-876.82850055,0.00018,2]
[329308078,1718231450143,-31895.25799427,0.00018,2]
[329308079,1718231450155,-2765.44251206,0.00018,2]
[329308080,1718231450166,-500.0,0.00018082,2]
[329308081,1718231450178,-500.0,0.00018082,2]
[329308082,1718231450190,-500.0,0.00018082,2]
[329308083,1718231450203,-546.08,0.00018082,2]
[329308084,1718231450215,-500.0,0.00018082,2]
[329308085,1718231450227,-686.84,0.00018082,2]
[329308086,1718231450240,-580.84,0.00018082,2]
[329308087,1718231450251,-500.0,0.00018082,2]
[329308088,1718231450262,-1068.1,0.00018082,2]
[329308089,1718231450274,-500.0,0.00018082,2]
[329308090,1718231450285,-2243.44,0.00018082,2]
[329308091,1718231450296,-500.0,0.00018082,2]
[329308092,1718231450308,-500.0,0.00018082,2]
[329308093,1718231450320,-583.47,0.00018082,2]
[329308094,1718231450331,-1089.2421966,0.00018082,2]
[329308095,1718231522015,-268.94920617,0.00010959,2]
[329308096,1718231522070,-38.03079383,0.00010959,2]
[329308098,1718231910668,230.91841234,9.999e-05,2]
[329308099,1718231910705,268.94920617,9.999e-05,2]
[329308100,1718231910756,252.30842502,9.999e-05,2]
[329308101,1718231910803,1205.52460635,9.999e-05,2]
[329308106,1718232526191,-225.98,0.00010959,2]
[329308124,1718232633743,-2816.98595741,0.00015214,2]
[329308125,1718232633754,-571.64713782,0.00015215,2]
[329308126,1718232633766,-799.45034687,0.00016338,2]
[329308127,1718232633784,-300.0,0.00016435,2]
[329308128,1718232633799,-524.421315,0.00016436,2]
[329308130,1718232633813,-155.01550155,0.00016436,2]
[329308132,1718232633827,-155.01550155,0.00016436,2]
[329308133,1718232633840,-155.01550155,0.00016436,2]
[329308134,1718232633851,-1517.40791058,0.00016436,2]
[329308135,1718232633871,-161.63330857,0.00016436,2]
[329308136,1718232633900,-159.94155477,0.00016436,2]
[329308137,1718232633912,-164.68563506,0.00016436,2]
[329308138,1718232633924,-724.01301029,0.00016436,2]
[329308139,1718232633940,-273.78628196,0.00016436,2]
[329308140,1718232633950,-156.17906786,0.00016436,2]
[329308141,1718232633961,-282.41371202,0.00016436,2]
[329308142,1718232633975,-13132.31188655,0.00016436,2]
[329308143,1718232633985,-2120.15435773,0.00016436,2]
[329308144,1718232633996,-155.01395126,0.00016436,2]
[329308145,1718232634007,-27592.08482979,0.00016436,2]
[329308146,1718232634018,-950.88258303,0.00016437,2]
[329308147,1718232634029,-500.0,0.00016438,2]
[329308148,1718232634066,-500.0,0.00016438,2]
[329308149,1718232634098,-500.0,0.00016438,2]
[329308150,1718232634123,-500.0,0.00016438,2]
[329308151,1718232634134,-500.0,0.00016438,2]
[329308152,1718232634150,-500.0,0.00016438,2]
[329308153,1718232634162,-500.0,0.00016438,2]
[329308154,1718232634189,-500.0,0.00016438,2]
[329308155,1718232634205,-500.0,0.00016438,2]
[329308156,1718232634221,-500.0,0.00016438,2]
[329308157,1718232634236,-500.0,0.00016438,2]
[329308158,1718232634253,-500.0,0.00016438,2]
[329308159,1718232634275,-500.0,0.00016438,2]
[329308160,1718232634285,-500.0,0.00016438,2]
[329308161,1718232634296,-500.0,0.00016438,2]
[329308162,1718232634308,-500.0,0.00016438,2]
[329308163,1718232634319,-500.58069483,0.00016438,2]
[329308164,1718232634352,-502.07950303,0.00016438,2]
[329308165,1718232634363,-500.0,0.00016438,2]
[329308166,1718232634374,-500.0,0.00016438,2]
[329308167,1718232634392,-500.0,0.00016438,2]
[329308168,1718232634404,-500.0,0.00016438,2]
[329308169,1718232634419,-500.0,0.00016438,2]
[329308170,1718232634434,-500.0,0.00016438,2]
[329308171,1718232634445,-500.0,0.00016438,2]
[329308172,1718232634460,-500.0,0.00016438,2]
[329308173,1718232634485,-500.0,0.00016438,2]
[329308174,1718232634510,-500.0,0.00016438,2]
[329308175,1718232634541,-500.0,0.00016438,2]
[329308176,1718232634555,-111.06379157,0.00016438,2]
[329308194,1718232639919,-128.74275699,0.00016438,2]
[329308195,1718232639936,-500.0,0.00016438,2]
[329308196,1718232639947,-500.0,0.00016438,2]
[329308197,1718232639958,-500.0,0.00016438,2]
[329308198,1718232639970,-500.0,0.00016438,2]
[329308199,1718232639981,-500.0,0.00016438,2]
[329308200,1718232639997,-500.0,0.00016438,2]
[329308201,1718232640008,-500.0,0.00016438,2]
[329308202,1718232640019,-500.0,0.00016438,2]
[329308203,1718232640031,-500.0,0.00016438,2]
[329308204,1718232640044,-500.0,0.00016438,2]
[329308205,1718232640058,-500.0,0.00016438,2]
[329308206,1718232640070,-500.0,0.00016438,2]
[329308207,1718232640098,-500.0,0.00016438,2]
[329308208,1718232640115,-500.0,0.00016438,2]
[329308209,1718232640131,-500.0,0.00016438,2]
[329308210,1718232640156,-500.0,0.00016438,2]
[329308211,1718232640170,-500.0,0.00016438,4]
[329308212,1718232640186,-500.0,0.00016438,2]
[329308213,1718232640200,-500.0,0.00016438,2]
[329308214,1718232640213,-586.1,0.00016438,2]
[329308215,1718232640230,-500.0,0.00016438,2]
[329308216,1718232640241,-519.10963546,0.00016438,2]
[329308217,1718232640254,-500.0,0.00016438,2]
[329308218,1718232640267,-500.0,0.00016438,2]
[329308219,1718232640281,-500.0,0.00016438,2]
[329308220,1718232640304,-500.0,0.00016438,2]
[329308221,1718232640319,-500.0,0.00016438,2]
[329308222,1718232640355,-500.0,0.00016438,2]
[329308223,1718232640374,-385.07062156,0.00016438,2]
[329308224,1718232640387,-500.0,0.00016438,2]
[329308225,1718232640402,-500.0,0.00016438,2]
[329308226,1718232640422,-500.0,0.00016438,2]
[329308227,1718232640437,-357.0113761,0.00016438,2]
[329308228,1718232640454,-500.0,0.00016438,2]
[329308229,1718232640473,-500.0,0.00016438,2]
[329308230,1718232640492,-500.0,0.00016438,2]
[329308231,1718232640513,-500.0,0.00016438,2]
[329308232,1718232640530,-500.0,0.00016438,2]
[329308233,1718232640554,-500.0,0.00016438,2]
[329308234,1718232640569,-500.0,0.00016438,2]
[329308235,1718232640594,-529.65,0.00016438,2]
[329308236,1718232640607,-500.0,0.00016438,2]
[329308237,1718232640630,-500.0,0.00016438,2]
[329308238,1718232640644,-500.0,0.00016438,2]
[329308239,1718232640657,-500.0,0.00016438,2]
[329308240,1718232640670,-500.0,0.00016438,2]
[329308241,1718232640686,-500.0,0.00016438,2]
[329308242,1718232640698,-580.65175072,0.00016438,2]
[329308243,1718232640711,-500.0,0.00016438,2]
[329308244,1718232640723,-500.0,0.00016438,2]
[329308245,1718232640735,-500.0,0.00016438,2]
[329308246,1718232640756,-500.0,0.00016438,2]
[329308247,1718232640767,-600.98,0.00016438,2]
[329308248,1718232640789,-500.0,0.00016438,2]
[329308249,1718232640803,-500.0,0.00016438,2]
[329308250,1718232640818,-500.0,0.00016438,2]
[329308251,1718232640832,-500.0,0.00016438,2]
[329308252,1718232640844,-500.0,0.00016438,2]
[329308253,1718232640855,-203.08,0.00016438,2]
[329308254,1718232640871,-500.0,0.00016438,2]
[329308255,1718232640884,-500.0,0.00016438,2]
[329308256,1718232640915,-500.0,0.00016438,2]
[329308257,1718232640928,-500.0,0.00016438,2]
[329308258,1718232640947,-500.0,0.00016438,2]
[329308259,1718232640959,-500.0,0.00016438,2]
[329308260,1718232640981,-555.33174636,0.00016438,2]
[329308261,1718232640996,-500.0,0.00016438,2]
[329308262,1718232641007,-500.0,0.00016438,2]
[329308263,1718232641022,-500.0,0.00016438,2]
[329308264,1718232641040,-508.24,0.00016438,2]
[329308265,1718232641052,-394.95705111,0.00016438,2]
[329308266,1718232641065,-500.0,0.00016438,2]
[329308267,1718232641083,-500.0,0.00016438,2]
[329308268,1718232641099,-500.0,0.00016438,2]
[329308269,1718232641112,-500.0,0.00016438,2]
[329308270,1718232641128,-1044.54,0.00016438,2]
[329308271,1718232641140,-500.0,0.00016438,2]
[329308272,1718232641152,-500.0,0.00016438,2]
[329308273,1718232641170,-500.0,0.00016438,2]
[329308274,1718232641181,-500.0,0.00016438,2]
[329308275,1718232641199,-500.0,0.00016438,2]
[329308276,1718232641209,-500.0,0.00016438,2]
[329308277,1718232641220,-500.0,0.00016438,2]
[329308278,1718232641231,-500.0,0.00016438,2]
[329308279,1718232641242,-500.0,0.00016438,2]
[329308280,1718232641256,-500.0,0.00016438,2]
[329308281,1718232641268,-500.0,0.00016438,2]
[329308282,1718232641280,-500.0,0.00016438,2]
[329308283,1718232641292,-500.0,0.00016438,2]
[329308284,1718232641322,-1963.01,0.00016438,2]
[329308285,1718232641364,-303.22026951,0.00016438,2]
[329308286,1718232641380,-500.0,0.00016438,2]
[329308287,1718232641392,-500.0,0.00016438,2]
[329308288,1718232641408,-500.0,0.00016438,2]
[329308289,1718232641420,-500.0,0.00016438,2]
[329308290,1718232641432,-502.33603809,0.00016438,2]
[329308291,1718232641444,-500.0,0.00016438,2]
[329308292,1718232641454,-500.0,0.00016438,2]
[329308293,1718232641471,-500.0,0.00016438,2]
[329308294,1718232641483,-500.0,0.00016438,2]
[329308295,1718232641501,-500.0,0.00016438,2]
[329308296,1718232641516,-500.0,0.00016438,2]
[329308297,1718232641537,-500.0,0.00016438,2]
[329308298,1718232641547,-500.0,0.00016438,2]
[329308299,1718232641561,-500.0,0.00016438,2]
[329308300,1718232641574,-500.0,0.00016438,2]
[329308301,1718232641588,-2596.78,0.00016438,2]
[329308302,1718232641608,-500.0,0.00016438,2]
[329308303,1718232641628,-500.0,0.00016438,2]
[329308304,1718232641642,-500.0,0.00016438,2]
[329308305,1718232641656,-500.0,0.00016438,2]
[329308306,1718232641673,-3399.77,0.00016438,2]
[329308307,1718232641693,-500.0,0.00016438,2]
[329308308,1718232641719,-500.0,0.00016438,2]
[329308309,1718232641739,-500.0,0.00016438,2]
[329308310,1718232641754,-500.0,0.00016438,2]
[329308311,1718232641775,-490.41813866,0.00016438,2]
[329308312,1718232641792,-500.0,0.00016438,2]
[329308313,1718232641808,-2194.64,0.00016438,2]
[329308314,1718232641824,-570.45,0.00016438,2]
[329308315,1718232641837,-500.0,0.00016438,2]
[329308316,1718232641863,-1501.41,0.00016438,2]
[329308317,1718232641887,-500.0,0.00016438,2]
[329308318,1718232641904,-500.0,0.00016438,2]
[329308319,1718232641916,-500.0,0.00016438,2]
[329308320,1718232641926,-500.0,0.00016438,2]
[329308321,1718232641937,-500.0,0.00016438,2]
[329308322,1718232641953,-500.0,0.00016438,2]
[329308323,1718232641968,-1714.96,0.00016438,2]
[329308324,1718232641981,-500.0,0.00016438,2]
[329308325,1718232641994,-500.0,0.00016438,2]
[329308326,1718232642015,-500.0,0.00016438,2]
[329308327,1718232642028,-500.0,0.00016438,2]
[329308328,1718232642048,-500.0,0.00016438,2]
[329308329,1718232642067,-500.0,0.00016438,2]
[329308330,1718232642087,-500.0,0.00016438,2]
[329308331,1718232642104,-661.7,0.00016438,2]
[329308332,1718232642118,-500.0,0.00016438,2]
[329308333,1718232642132,-500.0,0.00016438,2]
[329308334,1718232642143,-579.7,0.00016438,2]
[329308335,1718232642156,-2897.46,0.00016438,2]
[329308336,1718232642170,-539.99,0.00016438,2]
[329308337,1718232642195,-500.0,0.00016438,2]
[329308338,1718232642211,-500.0,0.00016438,2]
[329308339,1718232642224,-500.0,0.00016438,2]
[329308340,1718232642238,-500.0,0.00016438,2]
[329308341,1718232642250,-500.0,0.00016438,2]
[329308342,1718232642262,-500.0,0.00016438,2]
[329308343,1718232642274,-500.0,0.00016438,2]
[329308344,1718232642291,-500.0,0.00016438,2]
[329308345,1718232642307,-564.26,0.00016438,2]
[329308346,1718232642320,-500.0,0.00016438,2]